fUST/lending_fUST_20251004
["ID","MTS","AMOUNT","RATE_DAILY","PERIOD"]
[388967290,1759548669895,-500.0,0.00026254,9]
[388967291,1759548669904,-500.0,0.00026254,9]
[388967292,1759548669914,-500.0,0.00026254,9]
[388967293,1759548669924,-500.0,0.00026254,9]
[388967294,1759548669933,-500.0,0.00026254,9]
[388967295,1759548669942,-160.9072093,0.00026254,9]
[388967296,1759548669951,-663.67,0.00026254,9]
[388967297,1759548669960,-500.0,0.00026254,9]
[388967298,1759548669970,-500.0,0.00026254,9]
[388967299,1759548669980,-500.0,0.00026254,9]
[388967300,1759548669989,-1432.22,0.00026254,9]
[388967301,1759548669999,-791.8,0.00026254,9]
[388967302,1759548670007,-1750.24,0.00026254,9]
[388967303,1759548670017,-500.0,0.00026254,9]
[388967304,1759548670026,-500.0,0.00026254,9]
[388967305,1759548670035,-4191.64,0.00026254,9]
[388967306,1759548670044,-918.69,0.00026254,9]
[388967307,1759548670054,-500.0,0.00026254,9]
[388967308,1759548670063,-1214.75,0.00026254,9]
[388967309,1759548670072,-500.0,0.00026254,9]
[388967310,1759548670082,-500.0,0.00026254,9]
[388967311,1759548670091,-447.22815829,0.00026254,9]
[388967312,1759548670100,-624.88,0.00026254,9]
[388967313,1759548670109,-384.72011386,0.00026254,9]
[388967314,1759548670118,-450.20832156,0.00026254,9]
[388967315,1759548670127,-500.0,0.00026254,9]
[388967316,1759548670137,-500.0,0.00026254,9]
[388967317,1759548670146,-2336.01,0.00026254,9]
[388967318,1759548670155,-500.0,0.00026254,9]
[388967319,1759548670164,-500.0,0.00026254,9]
[388967320,1759548670173,-500.0,0.00026254,9]
[388967321,1759548670182,-500.0,0.00026254,9]
[388967322,1759548670191,-500.0,0.00026254,9]
[388967323,1759548670201,-500.0,0.00026254,9]
[388967324,1759548670210,-940.24,0.00026254,9]
[388967325,1759548670220,-500.0,0.00026254,9]
[388967326,1759548670229,-556.78,0.00026254,9]
[388967327,1759548670238,-500.0,0.00026254,9]
[388967328,1759548670247,-500.0,0.00026254,9]
[388967329,1759548670256,-500.0,0.00026254,9]
[388967330,1759548670266,-500.0,0.00026254,9]
[388967331,1759548670275,-500.0,0.00026254,9]
[388967332,1759548670283,-668.36,0.00026254,9]
[388967333,1759548670293,-500.0,0.00026254,9]
[388967334,1759548670302,-500.0,0.00026254,9]
[388967335,1759548670311,-500.0,0.00026254,9]
[388967336,1759548670320,-1274.51,0.00026254,9]
[388967337,1759548670330,-500.0,0.00026254,9]
[388967338,1759548670339,-540.27,0.00026254,9]
[388967339,1759548670348,-500.0,0.00026254,9]
[388967340,1759548670357,-637.21,0.00026254,9]
[388967341,1759548670366,-500.0,0.00026254,9]
[388967342,1759548670375,-500.0,0.00026254,9]
[388967343,1759548670384,-500.0,0.00026254,9]
[388967344,1759548670393,-696.12,0.00026254,9]
[388967345,1759548670402,-500.0,0.00026254,9]
[388967346,1759548670411,-500.0,0.00026254,9]
[388967347,1759548670420,-500.0,0.00026254,9]
[388967348,1759548670430,-500.0,0.00026254,9]
[388967349,1759548670438,-500.0,0.00026254,9]
[388967350,1759548670447,-706.93,0.00026254,9]
[388967351,1759548670455,-500.0,0.00026254,9]
[388967352,1759548670464,-670.94,0.00026254,9]
[388967353,1759548670473,-500.0,0.00026254,9]
[388967354,1759548670483,-1000.0,0.00026254,9]
[388967355,1759548670492,-2949.61,0.00026254,9]
[388967356,1759548670500,-500.0,0.00026254,9]
[388967357,1759548670510,-611.46586544,0.00026254,9]
[388967358,1759548670519,-500.0,0.00026254,9]
[388967359,1759548670527,-500.0,0.00026254,9]
[388967360,1759548670536,-500.0,0.00026254,9]
[388967361,1759548670546,-500.0,0.00026254,9]
[388967362,1759548670554,-500.0,0.00026254,9]
[388967363,1759548670564,-500.0,0.00026254,9]
[388967364,1759548670573,-500.0,0.00026254,9]
[388967365,1759548670583,-536.31,0.00026254,9]
[388967366,1759548670591,-480.09657904,0.00026254,9]
[388967367,1759548670600,-444.78827819,0.00026254,9]
[388967368,1759548670609,-500.0,0.00026254,9]
[388967369,1759548670617,-500.0,0.00026254,9]
[388967370,1759548670626,-500.0,0.00026254,9]
[388967371,1759548670635,-1250.61,0.00026254,9]
[388967372,1759548670644,-500.0,0.00026254,9]
[388967373,1759548670652,-500.0,0.00026254,9]
[388967374,1759548670661,-1311.78,0.00026254,9]
[388967375,1759548670670,-500.0,0.00026254,9]
[388967376,1759548670679,-500.0,0.00026254,9]
[388967377,1759548670688,-500.0,0.00026254,9]
[388967378,1759548670696,-767.0,0.00026254,9]
[388967379,1759548670705,-500.0,0.00026254,9]
[388967380,1759548670714,-899.32,0.00026254,9]
[388967381,1759548670722,-500.0,0.00026254,9]
[388967382,1759548670732,-500.0,0.00026254,9]
[388967383,1759548670740,-500.0,0.00026254,9]
[388967384,1759548670749,-500.0,0.00026254,9]
[388967385,1759548670758,-500.0,0.00026254,9]
[388967386,1759548670767,-500.0,0.00026254,9]
[388967387,1759548670776,-500.0,0.00026254,9]
[388967388,1759548670785,-500.0,0.00026254,9]
[388967389,1759548670794,-383.70124898,0.00026254,9]
[388967390,1759548670803,-665.21,0.00026254,9]
[388967391,1759548670812,-500.0,0.00026254,9]
[388967392,1759548670821,-500.0,0.00026254,9]
[388967393,1759548670830,-942.81,0.00026254,9]
[388967394,1759548670839,-753.72,0.00026254,9]
[388967395,1759548670847,-500.0,0.00026254,9]
[388967396,1759548670856,-500.0,0.00026254,9]
[388967397,1759548670865,-500.0,0.00026254,9]
[388967398,1759548670874,-500.0,0.00026254,9]
[388967399,1759548670883,-500.0,0.00026254,9]
[388967400,1759548670898,-500.0,0.00026254,9]
[388967401,1759548670907,-835.57,0.00026254,9]
[388967402,1759548670915,-500.0,0.00026254,9]
[388967403,1759548670924,-500.0,0.00026254,9]
[388967404,1759548670934,-1185.53,0.00026254,9]
[388967405,1759548670943,-500.0,0.00026254,9]
[388967406,1759548670952,-500.0,0.00026254,9]
[388967407,1759548670961,-500.0,0.00026254,9]
[388967408,1759548670972,-862.14,0.00026254,9]
[388967409,1759548670982,-500.0,0.00026254,9]
[388967410,1759548670991,-500.0,0.00026254,9]
[388967411,1759548671001,-4233.88,0.00026254,9]
[388967412,1759548671010,-500.0,0.00026254,9]
[388967413,1759548671019,-500.0,0.00026254,9]
[388967414,1759548671029,-567.6852017,0.00026254,9]
[388967415,1759548671040,-11413.76,0.00026254,9]
[388967416,1759548671052,-500.0,0.00026254,9]
[388967417,1759548671062,-500.0,0.00026254,9]
[388967418,1759548671072,-856.63,0.00026254,9]
[388967419,1759548671082,-634.36,0.00026254,9]
[388967420,1759548671093,-525.43,0.00026254,9]
[388967421,1759548671103,-600.54,0.00026254,9]
[388967422,1759548671113,-508.19,0.00026254,9]
[388967423,1759548671123,-500.0,0.00026254,9]
[388967424,1759548671132,-1265.55,0.00026254,9]
[388967425,1759548671142,-2001.23,0.00026254,9]
[388967426,1759548671153,-3169.3,0.00026254,9]
[388967427,1759548671162,-569.31,0.00026254,9]
[388967428,1759548671172,-7048.6,0.00026254,9]
[388967429,1759548671182,-500.0,0.00026254,9]
[388967430,1759548671192,-500.0,0.00026254,9]
[388967431,1759548671202,-500.0,0.00026254,9]
[388967432,1759548671211,-155.643231,0.00026264,7]
[388967433,1759548671221,-500.0,0.00026301,9]
[388967434,1759548671231,-500.0,0.00026301,9]
[388967435,1759548671240,-500.0,0.00026301,9]
[388967436,1759548671250,-960.96,0.00026301,9]
[388967437,1759548671259,-500.0,0.00026301,9]
[388967438,1759548671268,-500.0,0.00026301,9]
[388967439,1759548671277,-712.51,0.00026301,9]
[388967440,1759548671287,-1106.89,0.00026301,9]
[388967441,1759548671296,-667.06,0.00026301,9]
[388967442,1759548671306,-667.06,0.00026301,9]
[388967443,1759548671315,-1788.75,0.00026301,9]
[388967444,1759548671325,-1820.06,0.00026301,9]
[388967445,1759548671336,-500.0,0.00026301,9]
[388967446,1759548671345,-500.0,0.00026301,9]
[388967447,1759548671355,-769.39,0.00026301,9]
[388967448,1759548671364,-500.0,0.00026301,9]
[388967449,1759548671373,-500.0,0.00026302,9]
[388967450,1759548671382,-1317.9,0.00026302,9]
[388967451,1759548671392,-500.0,0.00026302,9]
[388967452,1759548671401,-500.0,0.00026302,9]
[388967453,1759548671410,-7349.02,0.00026302,9]
[388967454,1759548671540,-2161.96,0.00026302,9]
[388967455,1759548671549,-842.12,0.00026302,9]
[388967456,1759548671559,-500.0,0.00026302,9]
[388967457,1759548671568,-500.0,0.00026302,9]
[388967458,1759548671577,-767.31,0.00026302,9]
[388967459,1759548671587,-2556.15,0.00026302,9]
[388967460,1759548671596,-1333.55,0.00026302,9]
[388967461,1759548671604,-500.0,0.00026302,9]
[388967462,1759548671614,-2322.13,0.00026302,9]
[388967463,1759548671623,-1628.92,0.00026302,9]
[388967464,1759548671632,-2034.82,0.00026302,9]
[388967465,1759548671641,-500.0,0.00026302,9]
[388967466,1759548671650,-1996.29,0.00026302,9]
[388967467,1759548671659,-609.17,0.00026302,9]
[388967468,1759548671668,-4732.54,0.00026302,9]
[388967469,1759548671677,-500.0,0.00026303,2]
[388967470,1759548671686,-500.0,0.00026303,2]
[388967471,1759548671695,-552.84,0.00026303,9]
[388967472,1759548671704,-500.0,0.00026303,9]
[388967473,1759548671713,-500.0,0.00026303,9]
[388967474,1759548671721,-679.74,0.00026303,9]
[388967475,1759548671731,-500.0,0.00026303,9]
[388967476,1759548671739,-500.0,0.00026303,9]
[388967477,1759548671748,-500.0,0.00026303,9]
[388967478,1759548671757,-500.0,0.00026303,9]
[388967479,1759548671766,-500.0,0.00026303,9]
[388967480,1759548671775,-500.0,0.00026303,9]
[388967481,1759548671785,-1507.53,0.00026303,9]
[388967482,1759548671794,-863.65,0.00026303,9]
[388967483,1759548671803,-500.0,0.00026303,9]
[388967484,1759548671812,-2466.49,0.00026303,9]
[388967485,1759548671821,-695.27,0.00026303,9]
[388967486,1759548671830,-326.85350048,0.00026303,9]
[388967487,1759548671839,-1093.7,0.00026303,9]
[388967488,1759548671847,-500.0,0.00026303,9]
[388967489,1759548671856,-554.08,0.00026303,9]
[388967490,1759548671866,-500.0,0.00026303,9]
[388967491,1759548671875,-2087.09,0.00026303,9]
[388967492,1759548671884,-841.56,0.00026303,9]
[388967493,1759548671893,-2032.8,0.00026303,9]
[388967494,1759548671903,-1433.89,0.00026303,9]
[388967495,1759548671913,-583.72,0.00026303,9]
[388967496,1759548671922,-2467.58,0.00026303,9]
[388967497,1759548671931,-2422.75,0.00026303,9]
[388967498,1759548671940,-3825.01,0.00026303,9]
[388967499,1759548671949,-500.0,0.00026303,9]
[388967500,1759548671959,-1224.75,0.00026303,9]
[388967501,1759548671968,-532.17,0.00026303,9]
[388967502,1759548671978,-500.0,0.00026303,9]
[388967503,1759548671987,-1254.95,0.00026303,9]
[388967504,1759548671997,-861.85,0.00026303,9]
[388967505,1759548672006,-556.05,0.00026303,9]
[388967506,1759548672015,-505.27,0.00026303,9]
[388967507,1759548672025,-1405.7,0.00026303,9]
[388967508,1759548672034,-956.2,0.00026303,9]
[388967509,1759548672044,-737.65,0.00026303,9]
[388967510,1759548672054,-2767.1,0.00026303,9]
[388967511,1759548672062,-1980.87,0.00026303,9]
[388967512,1759548672072,-1083.4,0.00026303,9]
[388967513,1759548672081,-500.0,0.00026303,9]
[388967514,1759548672091,-500.0,0.00026303,9]
[388967515,1759548672101,-762.0,0.00026303,9]
[388967516,1759548672111,-2922.08,0.00026303,9]
[388967517,1759548672120,-380.18458338,0.00026303,9]
[388967518,1759548672130,-793.14,0.00026303,9]
[388967519,1759548672139,-500.0,0.00026304,9]
[388967520,1759548672148,-500.0,0.00026304,9]
[388967521,1759548672157,-500.0,0.00026304,9]
[388967522,1759548672166,-874.5,0.00026304,9]
[388967523,1759548672175,-769.08,0.00026304,9]
[388967524,1759548672184,-500.0,0.00026304,9]
[388967525,1759548672193,-500.0,0.00026304,9]
[388967526,1759548672203,-689.53,0.00026304,9]
[388967527,1759548672212,-500.0,0.00026304,9]
[388967528,1759548672221,-500.0,0.00026304,9]
[388967529,1759548672231,-500.0,0.00026304,9]
[388967530,1759548672241,-500.0,0.00026304,9]
[388967531,1759548672251,-500.0,0.00026304,9]
[388967532,1759548672260,-500.0,0.00026304,9]
[388967533,1759548672269,-770.78,0.00026304,9]
[388967534,1759548672279,-500.0,0.00026304,9]
[388967535,1759548672288,-500.0,0.00026304,9]
[388967536,1759548672298,-500.0,0.00026304,9]
[388967537,1759548672307,-500.0,0.00026304,9]
[388967538,1759548672318,-500.0,0.00026304,9]
[388967539,1759548672328,-500.0,0.00026304,9]
[388967540,1759548672338,-500.0,0.00026304,9]
[388967541,1759548672347,-500.0,0.00026304,9]
[388967542,1759548672356,-500.0,0.00026304,9]
[388967543,1759548672365,-709.88,0.00026304,9]
[388967544,1759548672374,-737.02,0.00026304,9]
[388967545,1759548672383,-500.0,0.00026304,9]
[388967546,1759548672393,-829.8,0.00026304,9]
[388967547,1759548672402,-1125.89,0.00026304,9]
[388967548,1759548672411,-627.26,0.00026304,9]
[388967549,1759548672421,-552.08,0.00026304,9]
[388967550,1759548672430,-774.45,0.00026304,9]
[388967551,1759548672439,-500.0,0.00026304,9]
[388967552,1759548672448,-296.21038561,0.00026304,9]
[388967553,1759548672457,-500.0,0.00026304,9]
[388967554,1759548672467,-500.0,0.00026304,9]
[388967555,1759548672476,-500.0,0.00026304,9]
[388967556,1759548672486,-500.0,0.00026304,9]
[388967557,1759548672495,-500.0,0.00026304,9]
[388967558,1759548672504,-500.0,0.00026304,9]
[388967559,1759548672514,-500.0,0.00026304,9]
[388967560,1759548672523,-500.0,0.00026304,9]
[388967561,1759548672532,-500.0,0.00026304,9]
[388967562,1759548672541,-500.0,0.00026304,9]
[388967563,1759548672551,-1559.89,0.00026304,9]
[388967564,1759548672560,-500.0,0.00026304,9]
[388967565,1759548672570,-500.0,0.00026304,9]
[388967566,1759548672579,-500.0,0.00026304,9]
[388967567,1759548672588,-500.0,0.00026304,9]
[388967568,1759548672597,-500.0,0.00026304,9]
[388967569,1759548672607,-500.0,0.00026304,9]
[388967570,1759548672616,-500.0,0.00026304,9]
[388967571,1759548672626,-500.0,0.00026304,9]
[388967572,1759548672635,-976.54,0.00026304,9]
[388967573,1759548672644,-502.66168098,0.00026304,9]
[388967574,1759548672653,-500.0,0.00026304,9]
[388967575,1759548672662,-500.0,0.00026304,9]
[388967576,1759548672671,-500.0,0.00026304,9]
[388967577,1759548672680,-500.0,0.00026304,9]
[388967578,1759548672689,-500.0,0.00026304,9]
[388967579,1759548672698,-1525.18,0.00026304,9]
[388967580,1759548672708,-500.0,0.00026304,9]
[388967581,1759548672716,-500.0,0.00026304,9]
[388967582,1759548672725,-500.0,0.00026304,9]
[388967583,1759548672735,-721.88,0.00026304,9]
[388967584,1759548672743,-1663.0,0.00026304,9]
[388967585,1759548672752,-500.0,0.00026304,9]
[388967586,1759548672761,-883.7,0.00026304,9]
[388967587,1759548672770,-1380.18,0.00026304,9]
[388967588,1759548672779,-500.0,0.00026304,9]
[388967589,1759548672789,-376.06112681,0.00026304,9]
[388967590,1759548672798,-542.48,0.00026304,9]
[388967591,1759548672806,-1170.27,0.00026304,9]
[388967592,1759548672816,-9306.08,0.00026304,3]
[388967593,1759548672825,-1125.42,0.00026304,9]
[388967594,1759548672834,-500.0,0.00026304,9]
[388967595,1759548672842,-1656.76,0.00026304,9]
[388967596,1759548672851,-5420.65,0.00026304,9]
[388967597,1759548672861,-500.0,0.00026304,9]
[388967598,1759548672870,-425.08516569,0.00026304,9]
[388967599,1759548672879,-500.0,0.00026304,9]
[388967600,1759548672887,-500.0,0.00026304,9]
[388967601,1759548672896,-799.27,0.00026304,9]
[388967602,1759548672905,-1400.04,0.00026304,9]
[388967603,1759548672913,-500.0,0.00026304,9]
[388967604,1759548672922,-500.0,0.00026304,9]
[388967605,1759548672931,-500.0,0.00026304,9]
[388967606,1759548672940,-500.0,0.00026304,9]
[388967607,1759548672949,-500.0,0.00026304,9]
[388967608,1759548672959,-5464.98,0.00026304,9]
[388967609,1759548672968,-500.0,0.00026304,7]
[388967610,1759548672978,-500.0,0.00026304,9]
[388967611,1759548672987,-1397.27,0.00026304,9]
[388967612,1759548672997,-500.0,0.00026304,9]
[388967613,1759548673006,-3223.31,0.00026304,9]
[388967614,1759548673014,-500.0,0.00026304,9]
[388967615,1759548673023,-500.0,0.00026304,9]
[388967616,1759548673032,-1000.0,0.00026321,2]
[388967617,1759548673041,-500.0,0.00026321,2]
[388967618,1759548673051,-413.42238669,0.00026321,2]
[388967619,1759548673060,-1000.0,0.00026321,2]
[388967620,1759548673069,-501.06751975,0.00026321,2]
[388967621,1759548673078,-500.86093508,0.00026321,2]
[388967622,1759548673086,-1000.0,0.00026321,2]
[388967623,1759548673095,-501.82380182,0.00026321,2]
[388967624,1759548673104,-1000.0,0.00026321,2]
[388967625,1759548673114,-1000.0,0.00026321,2]
[388967626,1759548673123,-1005.35634323,0.00026321,2]
[388967627,1759548673132,-1000.0,0.00026321,2]
[388967628,1759548673141,-507.37597527,0.00026321,2]
[388967629,1759548673151,-501.82208464,0.00026321,2]
[388967630,1759548673160,-168.0,0.00026377,2]
[388967631,1759548673169,-160.0,0.00026392,2]
[388967632,1759548673178,-180.0,0.00026394,2]
[388967633,1759548673187,-155.643231,0.00026396,2]
[388967634,1759548673196,-360.0,0.00026396,2]
[388967635,1759548673206,-168.0,0.00026397,2]
[388967636,1759548673216,-160.0,0.00026455,2]
[388967637,1759548673225,-902.26,0.00026493,9]
[388967638,1759548673235,-902.26,0.00026493,9]
[388967639,1759548673244,-500.0,0.00026493,9]
[388967640,1759548673253,-500.0,0.00026493,9]
[388967641,1759548673263,-168.0,0.00026502,2]
[388967642,1759548673272,-1053.45,0.00026516,9]
[388967643,1759548673282,-5436.53,0.00026516,9]
[388967644,1759548673290,-2166.99,0.00026516,9]
[388967645,1759548673300,-500.0,0.00026516,9]
[388967646,1759548673309,-500.0,0.00026517,9]
[388967647,1759548673319,-500.0,0.00026517,9]
[388967648,1759548673328,-1016.5,0.00026517,9]
[388967649,1759548673337,-500.0,0.00026517,9]
[388967650,1759548673347,-6029.59,0.00026517,9]
[388967651,1759548673356,-500.0,0.00026517,9]
[388967652,1759548673366,-573.67,0.00026517,9]
[388967653,1759548673375,-2444.74,0.00026517,9]
[388967654,1759548673385,-1768.56,0.00026517,9]
[388967655,1759548673395,-902.26,0.00026517,9]
[388967656,1759548673404,-500.0,0.00026517,9]
[388967657,1759548673414,-500.0,0.00026517,9]
[388967658,1759548673423,-500.0,0.00026517,9]
[388967659,1759548673433,-500.0,0.00026517,9]
[388967660,1759548673443,-1217.87,0.00026517,9]
[388967661,1759548673452,-500.0,0.00026517,9]
[388967662,1759548673460,-1410.55,0.00026517,9]
[388967663,1759548673469,-1057.31,0.00026517,9]
[388967664,1759548673479,-570.58955426,0.00026517,9]
[388967665,1759548673488,-500.0,0.00026517,9]
[388967666,1759548673497,-614.31,0.00026517,9]
[388967667,1759548673506,-427.7154987,0.00026517,9]
[388967668,1759548673515,-500.0,0.00026517,9]
[388967669,1759548673524,-500.0,0.00026517,9]
[388967670,1759548673533,-500.0,0.00026517,9]
[388967671,1759548673543,-500.0,0.00026517,9]
[388967672,1759548673553,-500.0,0.00026517,9]
[388967673,1759548673562,-1890.42,0.00026517,9]
[388967674,1759548673572,-500.0,0.00026517,9]
[388967675,1759548673582,-435.55880759,0.00026517,9]
[388967676,1759548673591,-1965.46,0.00026517,9]
[388967677,1759548673600,-859.98,0.00026517,9]
[388967678,1759548673609,-500.0,0.00026517,9]
[388967679,1759548673618,-500.0,0.00026517,9]
[388967680,1759548673627,-1488.36,0.00026517,9]
[388967681,1759548673638,-500.0,0.00026517,9]
[388967682,1759548673654,-500.0,0.00026517,9]
[388967683,1759548673663,-500.0,0.00026517,9]
[388967684,1759548673672,-1558.21,0.00026517,9]
[388967685,1759548673681,-863.04,0.00026517,9]
[388967686,1759548673691,-3806.56,0.00026517,9]
[388967687,1759548673700,-500.0,0.00026517,9]
[388967688,1759548673710,-500.0,0.00026517,9]
[388967689,1759548673720,-428.21618788,0.00026517,9]
[388967690,1759548673730,-500.0,0.00026517,9]
[388967691,1759548673739,-1165.36,0.00026517,9]
[388967692,1759548673748,-500.0,0.00026517,9]
[388967693,1759548673757,-500.0,0.00026517,9]
[388967694,1759548673766,-500.0,0.00026517,9]
[388967695,1759548673775,-1527.31,0.00026517,9]
[388967696,1759548673784,-500.0,0.00026517,9]
[388967697,1759548673793,-500.0,0.00026517,9]
[388967698,1759548673803,-500.0,0.00026517,9]
[388967699,1759548673812,-500.0,0.00026517,9]
[388967700,1759548673823,-810.82,0.00026517,9]
[388967701,1759548673832,-1276.0,0.00026517,9]
[388967702,1759548673842,-1419.65,0.00026517,9]
[388967703,1759548673852,-638.49,0.00026517,9]
[388967704,1759548673861,-261.24102013,0.00026517,9]
[388967706,1759548851707,232.0,0.00028767,120]
[388967709,1759549022931,2085.11,0.00028767,120]
[388967713,1759549166695,182.573602,0.00016438,2]
[388968378,1759549843135,-182.573602,0.00022783,2]
[388968379,1759549843145,-199.71722334,0.00023115,5]
[388968380,1759549843154,-102.57998601,0.00023836,11]
[388970611,1759549980853,200.0,0.00018,2]
[388970616,1759550005865,370.19004214,0.00018,2]
[388970624,1759550269249,14988.92684296,0.0002876,120]
[388970964,1759551038065,-5000.0,0.00022,2]
[388970965,1759551038074,-300.0,0.00022779,2]
[388970966,1759551038083,-14626.72186777,0.0002278,2]
[388970967,1759551038093,-287.55318189,0.0002288,2]
[388970968,1759551038103,-200.0,0.00023,2]
[388970969,1759551038112,-267.43,0.00023,2]
[388970970,1759551038121,-5000.0,0.00023,2]
[388970971,1759551038131,-439.44696649,0.0002378,2]
[388970972,1759551038140,-1757.78786595,0.0002378,2]
[388970973,1759551038150,-3951.0676757,0.0002378,2]
[388970974,1759551038161,-60.42001399,0.00023836,11]
[388970975,1759551038171,-351.5283135,0.00024556,2]
[388970976,1759551038180,-500.0,0.00024556,2]
[388970977,1759551038190,-185.25109938,0.00024556,2]
[388970978,1759551038199,-500.0,0.00024556,2]
[388970979,1759551038208,-403.00175403,0.00024556,2]
[388970980,1759551038217,-580.51229827,0.00024556,2]
[388970981,1759551038226,-578.12960249,0.00024556,2]
[388970982,1759551038235,-500.0,0.00024556,2]
[388970983,1759551038244,-500.0,0.00024556,2]
[388970984,1759551038254,-500.0,0.00024556,2]
[388970985,1759551038263,-413.67836007,0.00024556,2]
[388970986,1759551038273,-500.0,0.00024556,2]
[388970987,1759551038281,-321.05286701,0.00024557,2]
[388970988,1759551038290,-44926.65973828,0.00024557,2]
[388970989,1759551038299,-1840.4,0.00024647,10]
[388970990,1759551038308,-155.0,0.00024656,2]
[388970991,1759551038317,-196.94862145,0.00024656,2]
[388970992,1759551038326,-501.97557399,0.00024656,2]
[388970993,1759551038335,-577.04,0.00024657,9]
[388970994,1759551038344,-500.0,0.00024657,9]
[388970995,1759551038353,-532.41,0.00024657,9]
[388970996,1759551038363,-500.0,0.00024657,9]
[388970997,1759551038372,-480.0,0.00024657,9]
[388970998,1759551038382,-500.0,0.00024657,9]
[388970999,1759551038391,-500.0,0.00024657,9]
[388971000,1759551038400,-500.0,0.00024657,9]
[388971001,1759551038409,-480.0,0.00024657,9]
[388971002,1759551038418,-480.0,0.00024657,9]
[388971003,1759551038427,-500.0,0.00024657,9]
[388971004,1759551038436,-500.0,0.00024657,9]
[388971005,1759551038445,-500.0,0.00024657,9]
[388971006,1759551038455,-580.63218772,0.00024657,9]
[388971007,1759551038464,-500.0,0.00024657,9]
[388971008,1759551038473,-500.0,0.00024657,9]
[388971009,1759551038482,-500.0,0.00024657,5]
[388971010,1759551038491,-480.0,0.00024657,9]
[388971011,1759551038500,-500.0,0.00024657,9]
[388971012,1759551038509,-500.0,0.00024657,9]
[388971013,1759551038519,-500.0,0.00024657,9]
[388971014,1759551038528,-500.0,0.00024657,9]
[388971015,1759551038537,-500.0,0.00024657,9]
[388971016,1759551038546,-500.0,0.00024657,9]
[388971017,1759551038556,-200.61051789,0.00024657,9]
[388971018,1759551038565,-366.12182424,0.00024657,9]
[388971019,1759551038575,-500.0,0.00024657,9]
[388971020,1759551038584,-947.24,0.00024657,9]
[388971021,1759551038593,-500.0,0.00024657,9]
[388971022,1759551038602,-500.0,0.00024657,9]
[388971023,1759551038612,-500.0,0.00024657,9]
[388971024,1759551038622,-500.0,0.00024657,9]
[388971025,1759551038631,-500.0,0.00024657,9]
[388971026,1759551038640,-500.0,0.00024657,9]
[388971027,1759551038650,-500.0,0.00024657,9]
[388971028,1759551038659,-481.62687088,0.00024657,9]
[388971029,1759551038668,-793.34,0.00024657,9]
[388971030,1759551038677,-500.0,0.00024657,9]
[388971031,1759551038686,-500.0,0.00024657,9]
[388971032,1759551038696,-500.0,0.00024657,9]
[388971033,1759551038705,-500.0,0.00024657,9]
[388971034,1759551038714,-500.0,0.00024657,9]
[388971035,1759551038723,-632.05154757,0.00024657,9]
[388971036,1759551038732,-500.0,0.00024657,9]
[388971037,1759551038740,-500.0,0.00024657,9]
[388971038,1759551038750,-982.89,0.00024657,9]
[388971039,1759551038759,-500.0,0.00024657,9]